fUSD/lending_fUSD_20240122
["ID","MTS","AMOUNT","RATE_DAILY","PERIOD"]
[312483066,1705918426904,-2030.19,0.00055342,120]
[312483067,1705918426930,-584.46,0.00055342,120]
[312483068,1705918426958,-1238.5,0.00055342,120]
[312483069,1705918426984,-1848.21,0.00055342,120]
[312483070,1705918427009,-500.0,0.00055342,120]
[312483071,1705918427035,-500.0,0.00055342,120]
[312483072,1705918427059,-500.0,0.00055342,120]
[312483073,1705918427083,-1704.55,0.00055342,120]
[312483074,1705918427110,-1593.25,0.00055342,120]
[312483075,1705918427134,-1786.07,0.00055342,120]
[312483076,1705918427160,-500.0,0.00055342,120]
[312483077,1705918427186,-500.0,0.00055342,120]
[312483078,1705918427211,-1836.11,0.00055342,120]
[312483079,1705918427240,-863.91,0.00055342,120]
[312483080,1705918427265,-500.0,0.00055342,120]
[312483081,1705918427290,-500.0,0.00055342,120]
[312483082,1705918427318,-500.0,0.00055342,120]
[312483083,1705918427342,-529.28988037,0.00055342,120]
[312483084,1705918427367,-801.79,0.00055342,120]
[312483085,1705918427392,-500.0,0.00055342,120]
[312483086,1705918427418,-2640.84,0.00055342,120]
[312483087,1705918427442,-500.0,0.00055342,120]
[312483088,1705918427467,-500.0,0.00055342,120]
[312483089,1705918427493,-614.43017337,0.00055342,120]
[312483090,1705918427517,-500.0,0.00055342,120]
[312483091,1705918427541,-359.62,0.00055342,120]
[312483092,1705918427566,-2344.12,0.00055342,120]
[312483093,1705918427790,-1496.93,0.00055342,120]
[312483094,1705918427816,-865.46,0.00055342,120]
[312483095,1705918427842,-1578.24,0.00055342,120]
[312483096,1705918427866,-500.0,0.00055342,120]
[312483097,1705918427890,-2342.35,0.00055342,120]
[312483098,1705918427915,-1034.4,0.00055342,120]
[312483099,1705918427940,-1186.8,0.00055342,120]
[312483100,1705918427964,-2001.63,0.00055342,120]
[312483101,1705918427990,-1032.19,0.00055342,120]
[312483102,1705918428015,-3060.2,0.00055342,120]
[312483103,1705918428040,-761.23,0.00055342,120]
[312483104,1705918428066,-500.0,0.00055342,120]
[312483105,1705918428091,-500.0,0.00055342,120]
[312483106,1705918428115,-745.92,0.00055342,120]
[312483107,1705918428140,-500.0,0.00055342,120]
[312483108,1705918428166,-736.11,0.00055342,120]
[312483109,1705918428191,-1188.48,0.00055342,120]
[312483110,1705918428217,-2308.27,0.00055342,120]
[312483111,1705918428244,-500.0,0.00055342,120]
[312483112,1705918428268,-524.25088007,0.00055342,120]
[312483113,1705918428296,-1372.18,0.00055342,120]
[312483114,1705918428325,-1101.89,0.00055342,120]
[312483115,1705918428355,-1972.56,0.00055342,120]
[312483116,1705918428382,-500.0,0.00055342,120]
[312483117,1705918428408,-552.39,0.00055342,120]
[312483118,1705918428435,-572.75425115,0.00055342,120]
[312483119,1705918428461,-2142.95,0.00055342,120]
[312483120,1705918428493,-541.92,0.00055342,120]
[312483121,1705918428519,-2444.17,0.00055342,120]
[312483122,1705918428546,-520.80163692,0.00055342,120]
[312483123,1705918428573,-2463.13,0.00055342,120]
[312483124,1705918428598,-961.77,0.00055342,120]
[312483125,1705918428621,-500.0,0.00055342,120]
[312483126,1705918428647,-500.0,0.00055342,120]
[312483127,1705918428671,-500.0,0.00055342,120]
[312483128,1705918428696,-747.18,0.00055342,120]
[312483129,1705918428724,-1281.33,0.00055342,120]
[312483130,1705918428748,-1524.9,0.00055342,120]
[312483131,1705918428771,-500.0,0.00055342,120]
[312483132,1705918428796,-924.15,0.00055342,120]
[312483133,1705918428820,-500.0,0.00055342,120]
[312483134,1705918428844,-578.18186936,0.00055342,120]
[312483135,1705918428870,-14502.99,0.00055342,120]
[312483136,1705918428895,-2585.05,0.00055342,120]
[312483137,1705918428921,-500.0,0.00055342,120]
[312483138,1705918428947,-2250.02,0.00055342,120]
[312483139,1705918428976,-1085.35,0.00055342,120]
[312483140,1705918429002,-684.76,0.00055342,120]
[312483141,1705918429027,-2371.14,0.00055342,120]
[312483142,1705918429052,-1090.09,0.00055342,120]
[312483143,1705918429076,-1293.87,0.00055342,120]
[312483144,1705918429099,-1182.55,0.00055342,120]
[312483145,1705918429123,-500.0,0.00055342,120]
[312483146,1705918429147,-200.45526057,0.00055342,120]
[312483147,1705918429171,-500.0,0.00055342,120]
[312483148,1705918429195,-3817.42,0.00055342,120]
[312483149,1705918429220,-784.09,0.00055342,120]
[312483150,1705918429245,-4226.7,0.00055342,120]
[312483151,1705918429268,-285.24721225,0.00055342,120]
[312483152,1705918429293,-3693.98,0.00055342,120]
[312483153,1705918429320,-500.0,0.00055342,120]
[312483154,1705918429343,-892.42,0.00055342,120]
[312483155,1705918429367,-2184.8,0.00055342,120]
[312483156,1705918429392,-1360.81,0.00055342,120]
[312483157,1705918429416,-1092.84,0.00055342,120]
[312483158,1705918429441,-3654.95,0.00055342,120]
[312483159,1705918429467,-16683.3,0.00055342,120]
[312483160,1705918429491,-817.95,0.00055342,120]
[312483161,1705918429514,-500.0,0.00055342,120]
[312483162,1705918429538,-1780.31,0.00055342,120]
[312483163,1705918429562,-705.95,0.00055342,120]
[312483164,1705918429588,-500.0,0.00055342,120]
[312483165,1705918429613,-521.4330393,0.00055342,120]
[312483166,1705918429638,-2271.35,0.00055342,120]
[312483167,1705918429662,-500.0,0.00055342,120]
[312483168,1705918429685,-2209.82,0.00055342,120]
[312483169,1705918429708,-1049.17,0.00055342,120]
[312483170,1705918429732,-500.0,0.00055342,120]
[312483171,1705918429756,-1714.36,0.00055342,120]
[312483172,1705918429779,-500.0,0.00055342,120]
[312483173,1705918429803,-500.0,0.00055342,120]
[312483174,1705918429827,-972.55,0.00055342,120]
[312483175,1705918429850,-500.0,0.00055342,120]
[312483176,1705918429876,-739.42,0.00055342,120]
[312483177,1705918429899,-960.95,0.00055342,120]
[312483178,1705918429924,-738.1,0.00055342,120]
[312483179,1705918429948,-602.34,0.00055342,120]
[312483180,1705918429973,-500.0,0.00055342,120]
[312483181,1705918429998,-788.32,0.00055342,120]
[312483182,1705918430025,-500.0,0.00055342,120]
[312483183,1705918430050,-1467.59,0.00055342,120]
[312483184,1705918430075,-514.37,0.00055342,120]
[312483185,1705918430099,-500.0,0.00055342,120]
[312483186,1705918430123,-5756.1,0.00055342,120]
[312483187,1705918430147,-3899.08,0.00055342,120]
[312483188,1705918430171,-500.0,0.00055342,120]
[312483189,1705918430195,-500.0,0.00055342,120]
[312483190,1705918430223,-500.0,0.00055342,120]
[312483191,1705918430249,-1819.22,0.00055342,120]
[312483192,1705918430276,-1216.84,0.00055342,120]
[312483193,1705918430301,-1489.53,0.00055342,120]
[312483194,1705918430327,-500.0,0.00055342,120]
[312483195,1705918430353,-1836.66,0.00055342,120]
[312483196,1705918430560,-759.64,0.00055342,120]
[312483197,1705918430587,-1192.99,0.00055342,120]
[312483198,1705918430614,-500.0,0.00055342,120]
[312483199,1705918430640,-500.0,0.00055342,120]
[312483200,1705918430664,-500.0,0.00055616,120]
[312483201,1705918430690,-713.28,0.00055616,120]
[312483202,1705918430717,-500.0,0.00055616,120]
[312483203,1705918430743,-500.0,0.00055616,120]
[312483204,1705918430770,-12738.74813868,0.00055616,120]
[312483205,1705918440819,160.14,0.00027397,2]
[312483206,1705918448308,-400.3765365,0.00045,120]
[312483207,1705918448334,-1205.98651319,0.00045,120]
[312483208,1705918448478,-2474.77,0.00054794,120]
[312483209,1705918448507,-1925.28,0.00054794,120]
[312483210,1705918448532,-620.92,0.00054794,120]
[312483211,1705918448558,-500.0,0.00054794,120]
[312483212,1705918448582,-394.36371864,0.00054794,120]
[312483213,1705918448611,-500.0,0.00054794,120]
[312483214,1705918448639,-500.0,0.00054794,120]
[312483215,1705918448665,-1261.67,0.00054794,120]
[312483216,1705918448690,-500.0,0.00054794,120]
[312483217,1705918448715,-500.0,0.00054794,120]
[312483218,1705918448743,-500.0,0.00054794,120]
[312483219,1705918449002,-500.0,0.00054794,120]
[312483220,1705918449028,-1350.97,0.00054794,120]
[312483221,1705918449053,-500.0,0.00054794,120]
[312483222,1705918449079,-500.0,0.00054794,120]
[312483223,1705918449104,-500.0,0.00054794,120]
[312483224,1705918449129,-1241.68,0.00054794,120]
[312483225,1705918449154,-500.0,0.00054794,120]
[312483226,1705918449179,-500.0,0.00054794,120]
[312483227,1705918449204,-500.0,0.00054794,120]
[312483228,1705918449231,-500.0,0.00054794,120]
[312483229,1705918449262,-500.0,0.00054794,120]
[312483230,1705918449287,-500.0,0.00054794,120]
[312483231,1705918449312,-500.0,0.00054794,120]
[312483232,1705918449337,-500.0,0.00054794,120]
[312483233,1705918449362,-500.0,0.00054794,120]
[312483234,1705918449389,-500.0,0.00054794,120]
[312483235,1705918449416,-500.0,0.00054794,120]
[312483236,1705918449444,-500.0,0.00054794,120]
[312483237,1705918449471,-500.0,0.00054794,120]
[312483238,1705918449504,-440.41,0.00054794,120]
[312483239,1705918449531,-500.0,0.00054794,120]
[312483240,1705918449558,-977.26,0.00054794,120]
[312483241,1705918449585,-500.0,0.00054794,120]
[312483242,1705918449612,-500.0,0.00054794,120]
[312483243,1705918449639,-500.0,0.00054794,120]
[312483244,1705918449670,-500.0,0.00054794,120]
[312483245,1705918449697,-500.0,0.00054794,120]
[312483246,1705918449723,-500.0,0.00054794,120]
[312483247,1705918449756,-500.0,0.00054794,120]
[312483248,1705918449782,-500.0,0.00054794,120]
[312483249,1705918449806,-2355.07,0.00054794,120]
[312483250,1705918449831,-500.0,0.00054794,120]
[312483251,1705918449856,-500.0,0.00054794,120]
[312483252,1705918449881,-639.04,0.00054794,120]
[312483253,1705918449905,-1000.0,0.00054794,120]
[312483254,1705918449930,-500.0,0.00054794,120]
[312483255,1705918449954,-1804.9,0.00054794,120]
[312483256,1705918449977,-500.0,0.00054794,120]
[312483257,1705918450009,-500.0,0.00054794,120]
[312483258,1705918450033,-6561.13,0.00054794,120]
[312483259,1705918450059,-500.0,0.00054794,120]
[312483260,1705918450085,-500.0,0.00054794,120]
[312483261,1705918450110,-500.0,0.00054794,120]
[312483262,1705918450134,-500.0,0.00054794,120]
[312483263,1705918450158,-1465.34,0.00054794,120]
[312483264,1705918450182,-519.76,0.00054794,120]
[312483265,1705918450206,-500.0,0.00054794,120]
[312483266,1705918450234,-7493.82,0.00054794,120]
[312483267,1705918450258,-4040.49,0.00054794,120]
[312483268,1705918450283,-500.0,0.00054794,120]
[312483269,1705918450306,-500.0,0.00054794,120]
[312483270,1705918450329,-1387.74,0.00054794,120]
[312483271,1705918450353,-500.0,0.00054794,120]
[312483272,1705918450376,-2456.24,0.00054794,120]
[312483273,1705918450401,-500.0,0.00054794,120]
[312483274,1705918450425,-500.0,0.00054794,120]
[312483275,1705918450449,-1103.2,0.00054794,120]
[312483276,1705918450472,-500.0,0.00054794,120]
[312483277,1705918450499,-537.45,0.00054794,120]
[312483278,1705918450522,-2622.32,0.00054794,120]
[312483279,1705918450545,-500.0,0.00054794,120]
[312483280,1705918450568,-1636.7,0.00054794,120]
[312483281,1705918450593,-500.0,0.00054794,120]
[312483282,1705918450618,-174.64764454,0.00054794,120]
[312483283,1705918450642,-505.55399946,0.00054794,120]
[312483284,1705918450666,-814.98,0.00054794,120]
[312483285,1705918450690,-500.0,0.00054794,120]
[312483286,1705918450713,-500.0,0.00054794,120]
[312483287,1705918450738,-2173.4,0.00054794,120]
[312483288,1705918450761,-515.14,0.00054794,120]
[312483289,1705918450784,-500.0,0.00054794,120]
[312483290,1705918450809,-378.47,0.00054794,120]
[312483291,1705918450832,-1006.79,0.00054794,120]
[312483292,1705918450857,-797.05290804,0.00055,120]
[312483293,1705918450883,-2474.77,0.00055068,120]
[312483294,1705918450907,-1925.28,0.00055068,120]
[312483295,1705918450932,-1261.67,0.00055068,120]
[312483296,1705918450956,-500.0,0.00055068,120]
[312483297,1705918450982,-1350.97,0.00055068,120]
[312483298,1705918451007,-359.55,0.00055068,120]
[312483299,1705918451032,-1241.68,0.00055068,120]
[312483300,1705918451057,-500.0,0.00055068,120]
[312483301,1705918451081,-254.23,0.00055068,120]
[312483302,1705918451107,-500.0,0.00055068,120]
[312483303,1705918451131,-500.0,0.00055068,120]
[312483304,1705918451155,-977.26,0.00055068,120]
[312483305,1705918451180,-171.32,0.00055068,120]
[312483306,1705918451205,-2355.07,0.00055068,120]
[312483307,1705918451232,-168.3,0.00055068,120]
[312483308,1705918451259,-500.0,0.00055068,120]
[312483309,1705918451283,-251.06126091,0.00055068,120]
[312483310,1705918451307,-500.0,0.00055068,120]
[312483311,1705918451332,-1804.9,0.00055068,120]
[312483312,1705918451356,-6561.13,0.00055068,120]
[312483313,1705918451381,-500.0,0.00055068,120]
[312483314,1705918451405,-500.0,0.00055068,120]
[312483315,1705918451429,-393.94,0.00055068,120]
[312483316,1705918451453,-1465.34,0.00055068,120]
[312483317,1705918451477,-7493.82,0.00055068,120]
[312483318,1705918451506,-4040.49,0.00055068,120]
[312483319,1705918451530,-1387.74,0.00055068,120]
[312483320,1705918451554,-2456.24,0.00055068,120]
[312483321,1705918451577,-500.0,0.00055068,120]
[312483322,1705918451602,-1103.2,0.00055068,120]
[312483323,1705918451804,-537.45,0.00055068,120]
[312483324,1705918451830,-2622.32,0.00055068,120]
[312483325,1705918451854,-1636.7,0.00055068,120]
[312483326,1705918451878,-500.0,0.00055068,120]
[312483327,1705918451902,-814.98,0.00055068,120]
[312483328,1705918451926,-500.0,0.00055068,120]
[312483329,1705918451949,-2173.4,0.00055068,120]
[312483330,1705918451973,-515.14,0.00055068,120]
[312483331,1705918452001,-500.0,0.00055068,120]
[312483332,1705918452026,-378.47,0.00055068,120]
[312483333,1705918452053,-2474.77,0.00055342,120]
[312483334,1705918452078,-1925.28,0.00055342,120]
[312483335,1705918452103,-1261.67,0.00055342,120]
[312483336,1705918452126,-500.0,0.00055342,120]
[312483337,1705918452151,-1350.97,0.00055342,120]
[312483338,1705918452175,-1241.68,0.00055342,120]
[312483339,1705918452198,-500.0,0.00055342,120]
[312483340,1705918452228,-500.0,0.00055342,120]
[312483341,1705918452255,-977.26,0.00055342,120]
[312483342,1705918452279,-500.0,0.00055342,120]
[312483343,1705918452305,-2355.07,0.00055342,120]
[312483344,1705918452329,-500.0,0.00055342,120]
[312483345,1705918452354,-500.0,0.00055342,120]
[312483346,1705918452378,-1804.9,0.00055342,120]
[312483347,1705918452403,-6561.13,0.00055342,120]
[312483348,1705918452427,-500.0,0.00055342,120]
[312483349,1705918452451,-500.0,0.00055342,120]
[312483350,1705918452476,-1465.34,0.00055342,120]
[312483351,1705918452502,-4040.49,0.00055342,120]
[312483352,1705918452528,-7493.82,0.00055342,120]
[312483353,1705918452554,-1387.74,0.00055342,120]
[312483354,1705918452578,-2456.24,0.00055342,120]
[312483355,1705918452602,-385.45,0.00055342,120]
[312483356,1705918452626,-1103.2,0.00055342,120]
[312483357,1705918452650,-537.45,0.00055342,120]
[312483358,1705918452674,-2622.32,0.00055342,120]
[312483359,1705918452698,-1636.7,0.00055342,120]
[312483360,1705918452722,-500.0,0.00055342,120]
[312483361,1705918452747,-814.98,0.00055342,120]
[312483362,1705918452770,-500.0,0.00055342,120]
[312483363,1705918452793,-2173.4,0.00055342,120]
[312483364,1705918452817,-602.84,0.00055616,120]
[312483365,1705918452842,-645.74,0.00055616,120]
[312483366,1705918452867,-500.0,0.00055616,120]
[312483367,1705918452892,-636.13,0.00055616,120]
[312483368,1705918452916,-500.0,0.00055616,120]
[312483369,1705918452940,-500.0,0.00055616,120]
[312483370,1705918452967,-500.0,0.00055616,120]
[312483371,1705918452994,-1398.85,0.00055616,120]
[312483372,1705918453020,-500.0,0.00055616,120]
[312483373,1705918453045,-500.0,0.00055616,120]
[312483374,1705918453070,-997.7,0.00055616,120]
[312483375,1705918453095,-745.51,0.00055616,120]
[312483376,1705918453120,-511.07536513,0.00055616,120]
[312483377,1705918453145,-500.0,0.00055616,120]
[312483378,1705918453168,-500.0,0.00055616,120]
[312483379,1705918453192,-500.0,0.00055616,120]
[312483380,1705918453217,-707.21,0.00055616,120]
[312483381,1705918453242,-500.0,0.00055616,120]
[312483382,1705918453271,-500.0,0.00055616,120]
[312483383,1705918453295,-500.0,0.00055616,120]
[312483384,1705918453321,-500.0,0.00055616,120]
[312483385,1705918453347,-502.96863306,0.00055616,120]
[312483386,1705918453371,-1187.06,0.00055616,120]
[312483387,1705918453395,-500.0,0.00055616,120]
[312483388,1705918453419,-500.0,0.00055616,120]
[312483389,1705918453443,-500.0,0.00055616,120]
[312483390,1705918453467,-742.13,0.00055616,120]
[312483391,1705918453492,-500.0,0.00055616,120]
[312483392,1705918453517,-504.48737085,0.00055616,120]
[312483393,1705918453541,-500.0,0.00055616,120]
[312483394,1705918453564,-500.0,0.00055616,120]
[312483395,1705918453588,-500.0,0.00055616,120]
[312483396,1705918453613,-500.0,0.00055616,120]
[312483397,1705918453639,-1278.95,0.00055616,120]
[312483398,1705918453663,-802.05,0.00055616,120]
[312483399,1705918453685,-500.0,0.00055616,120]
[312483400,1705918453710,-500.0,0.00055616,120]
[312483401,1705918453736,-500.0,0.00055616,120]
[312483402,1705918453759,-500.0,0.00055616,120]
[312483403,1705918453783,-602.12,0.00055616,120]
[312483404,1705918453807,-500.0,0.00055616,120]
[312483405,1705918453831,-1371.19,0.00055616,120]
[312483406,1705918453855,-792.25,0.00055616,120]
[312483407,1705918453879,-536.79855245,0.00055616,120]
[312483408,1705918453904,-912.7,0.00055616,120]
[312483409,1705918453928,-500.0,0.00055616,120]
[312483410,1705918453952,-973.37,0.00055616,120]
[312483411,1705918453977,-982.47,0.00055616,120]
[312483412,1705918454005,-305.70728483,0.00055616,120]
[312483413,1705918454031,-500.0,0.00055616,120]
[312483414,1705918454056,-500.0,0.00055616,120]
[312483415,1705918454080,-500.0,0.00055616,120]
[312483416,1705918454104,-500.0,0.00055616,120]
[312483417,1705918454127,-353.10596085,0.00055616,120]
[312483418,1705918454151,-1169.98,0.00055616,120]
[312483419,1705918454176,-500.0,0.00055616,120]
[312483420,1705918454200,-2674.45,0.00055616,120]
[312483421,1705918454224,-723.04,0.00055616,120]
[312483422,1705918454251,-563.17,0.00055616,120]
[312483423,1705918454276,-514.39532442,0.00055616,120]
[312483424,1705918454300,-902.59,0.00055616,120]
[312483425,1705918454324,-528.00084137,0.00055616,120]
[312483426,1705918454530,-500.0,0.00055616,120]
[312483427,1705918454556,-486.70393495,0.00055616,120]
[312483428,1705918454580,-1240.23,0.00055616,120]
[312483429,1705918454603,-668.9,0.00055616,120]
[312483430,1705918454626,-500.0,0.00055616,120]
[312483431,1705918454650,-500.0,0.00055616,120]
[312483432,1705918454674,-1239.21,0.00055616,120]
[312483433,1705918454698,-500.0,0.00055616,120]
[312483434,1705918454722,-1038.92,0.00055616,120]
[312483435,1705918454748,-1181.06,0.00055616,120]
[312483436,1705918454771,-500.0,0.00055616,120]
[312483437,1705918454796,-1214.42,0.00055616,120]
[312483438,1705918454820,-1064.35,0.00055616,120]
[312483439,1705918454846,-500.0,0.00055616,120]
[312483440,1705918454869,-500.0,0.00055616,120]
[312483441,1705918454893,-500.0,0.00055616,120]
[312483442,1705918454918,-873.61,0.00055616,120]
[312483443,1705918454942,-532.44,0.00055616,120]
[312483444,1705918454967,-1073.55,0.00055616,120]
[312483445,1705918454993,-9034.29,0.00055616,120]
[312483446,1705918455017,-918.93,0.00055616,120]
[312483447,1705918455042,-1999.18,0.00055616,120]
[312483448,1705918455066,-1061.34,0.00055616,120]
[312483449,1705918455091,-500.0,0.00055616,120]
[312483450,1705918455114,-922.93,0.00055616,120]
[312483451,1705918455138,-500.0,0.00055616,120]
[312483452,1705918455162,-500.0,0.00055616,120]
[312483453,1705918455185,-808.33,0.00055616,120]
[312483454,1705918455211,-2476.34,0.00055616,120]
[312483455,1705918455244,-656.23,0.00055616,120]
[312483456,1705918455269,-4107.9,0.00055616,120]
[312483457,1705918455293,-699.33,0.00055616,120]
[312483458,1705918455319,-724.39,0.00055616,120]
[312483459,1705918455344,-1665.07,0.00055616,120]
[312483460,1705918455368,-1116.22,0.00055616,120]
[312483461,1705918455393,-500.0,0.00055616,120]
[312483462,1705918455417,-500.0,0.00055616,120]
[312483463,1705918455441,-657.56,0.00055616,120]
[312483464,1705918455467,-2512.1,0.00055616,120]
[312483465,1705918455498,-500.0,0.00055616,120]
[312483466,1705918455522,-1194.47,0.00055616,120]
[312483467,1705918455545,-1720.31,0.00055616,120]
[312483468,1705918455569,-500.0,0.00055616,120]
[312483469,1705918455594,-2301.29,0.00055616,120]
[312483470,1705918455619,-500.0,0.00055616,120]
[312483471,1705918455643,-500.0,0.00055616,120]
[312483472,1705918455667,-706.13,0.00055616,120]
[312483473,1705918455691,-553.69,0.00055616,120]
[312483474,1705918455715,-500.0,0.00055616,120]
[312483475,1705918455741,-1669.08,0.00055616,120]
[312483476,1705918455767,-19362.15,0.00055616,120]
[312483477,1705918455790,-1087.67,0.00055616,120]
[312483478,1705918455814,-712.61,0.00055616,120]
[312483479,1705918455838,-500.0,0.00055616,120]
[312483480,1705918455862,-500.0,0.00055616,120]
[312483481,1705918455886,-500.0,0.00055616,120]
[312483482,1705918455910,-500.0,0.00055616,120]
[312483483,1705918455934,-599.68,0.00055616,120]
[312483484,1705918455958,-1199.72,0.00055616,120]
[312483485,1705918455985,-1532.53,0.00055616,120]
[312483486,1705918456010,-1694.05,0.00055616,120]
[312483487,1705918456034,-500.0,0.00055616,120]
[312483488,1705918456058,-500.0,0.00055616,120]
[312483489,1705918456083,-6686.82,0.00055616,120]
[312483490,1705918456107,-500.0,0.00055616,120]
[312483491,1705918456132,-1450.35,0.00055616,120]
[312483492,1705918456156,-1145.67,0.00055616,120]
[312483493,1705918456180,-532.98,0.00055616,120]
[312483494,1705918456203,-2499.42,0.00055616,120]
[312483495,1705918456227,-500.0,0.00055616,120]
[312483496,1705918456255,-500.0,0.00055616,120]
[312483497,1705918456279,-500.0,0.00055616,120]
[312483498,1705918456304,-6801.26,0.00055616,120]
[312483499,1705918456328,-500.0,0.00055616,120]
[312483500,1705918456352,-247.08451426,0.00055616,120]
[312483501,1705918456375,-1565.19,0.00055616,120]
[312483502,1705918456399,-1113.77,0.00055616,120]
[312483503,1705918456422,-826.52,0.00055616,120]
[312483504,1705918456445,-949.09,0.00055616,120]
[312483505,1705918456469,-565.56,0.00055616,120]
[312483506,1705918456495,-1338.84,0.00055616,120]
[312483507,1705918456520,-500.0,0.00055616,120]
[312483508,1705918456543,-500.0,0.00055616,120]
[312483509,1705918456566,-554.17,0.00055616,120]
[312483510,1705918456589,-5157.15,0.00055616,120]
[312483511,1705918456614,-500.0,0.00055616,120]
[312483512,1705918456637,-500.0,0.00055616,120]
[312483513,1705918456661,-1051.0,0.00055616,120]
[312483514,1705918456684,-2238.16,0.00055616,120]
[312483515,1705918456706,-500.0,0.00055616,120]
[312483516,1705918456729,-1373.79,0.00055616,120]
[312483517,1705918456754,-1019.58,0.00055616,120]
[312483518,1705918456777,-967.68,0.00055616,120]
[312483519,1705918456802,-1695.45,0.00055616,120]
[312483520,1705918456826,-500.0,0.00055616,120]
[312483521,1705918456850,-529.58,0.00055616,120]
[312483522,1705918456874,-500.0,0.00055616,120]
[312483523,1705918456898,-741.59,0.00055616,120]
[312483524,1705918456922,-500.0,0.00055616,120]
[312483525,1705918456945,-1989.11,0.00055616,120]
[312483526,1705918456969,-819.31,0.00055616,120]
[312483527,1705918456995,-500.0,0.00055616,120]
[312483528,1705918457020,-1387.06,0.00055616,120]
[312483529,1705918457191,-781.78,0.00055616,120]
[312483530,1705918457249,-2030.19,0.00055616,120]
[312483531,1705918457273,-584.46,0.00055616,120]
[312483532,1705918457297,-1238.5,0.00055616,120]
[312483533,1705918457321,-1848.21,0.00055616,120]
[312483534,1705918457345,-500.0,0.00055616,120]
[312483535,1705918457369,-500.0,0.00055616,120]
[312483536,1705918457392,-500.0,0.00055616,120]
[312483537,1705918457416,-1704.55,0.00055616,120]
[312483538,1705918457440,-1593.25,0.00055616,120]
[312483539,1705918457463,-1786.07,0.00055616,120]
[312483540,1705918457488,-500.0,0.00055616,120]
[312483541,1705918457511,-500.0,0.00055616,120]
[312483542,1705918457535,-1836.11,0.00055616,120]
[312483543,1705918457559,-863.91,0.00055616,120]
[312483544,1705918457582,-500.0,0.00055616,120]
[312483545,1705918457605,-500.0,0.00055616,120]
[312483546,1705918457628,-500.0,0.00055616,120]
[312483547,1705918457651,-801.79,0.00055616,120]
[312483548,1705918457674,-500.0,0.00055616,120]
[312483549,1705918457697,-2640.84,0.00055616,120]
[312483550,1705918457720,-500.0,0.00055616,120]
[312483551,1705918457745,-500.0,0.00055616,120]
[312483552,1705918457770,-500.0,0.00055616,120]
[312483553,1705918457794,-359.62,0.00055616,120]
[312483554,1705918457818,-2344.12,0.00055616,120]
[312483555,1705918457842,-1496.93,0.00055616,120]
[312483556,1705918457866,-865.46,0.00055616,120]
[312483557,1705918457890,-1578.24,0.00055616,120]
[312483558,1705918457915,-500.0,0.00055616,120]
[312483559,1705918457939,-2342.35,0.00055616,120]
[312483560,1705918457964,-1034.4,0.00055616,120]
[312483561,1705918457991,-1186.8,0.00055616,120]
[312483562,1705918458016,-2001.63,0.00055616,120]
[312483563,1705918458043,-1032.19,0.00055616,120]
[312483564,1705918458069,-3060.2,0.00055616,120]
[312483565,1705918458093,-761.23,0.00055616,120]